Cogmind - Beta 14 @@@ ROGUE MODE // 2024.11.09 @ 22:50:38 Player: KTG-V3 Result: Destroyed by G-47 Trooper with Particle Gun Performance ------------- Evolutions (0) 0 Regions Visited (1) 200 Robots Destroyed (17) 85 Value Destroyed (366) 366 Prototype IDs (0) 0 Alien Tech Used (0) 0 Bonus (0) 0 TOTAL SCORE: 651 Bonus ------- None Cogmind --------- Core Integrity 0/250 Matter 270/300 Energy 42/100 System Corruption 0% Temperature Cool (9) Movement Rolling (110) Ox2 Location -10/Materials Parts ------- > --- POWER (1) -------- (None) > --- PROPULSION (2) --- Aluminum Leg Wheel > --- UTILITY (2) ------ Disposable Heat Sink Large Storage Unit > --- WEAPON (2) ------- Small Laser > --- INVENTORY (15) --- Wheel Compact Wheel Compact Wheel Compact Wheel Heat Sink Medium Matter Pod (35) Mining Laser Peak State ------------ > --- POWER ------------ Light Ion Engine > --- PROPULSION ------- Light Treads Light Treads > --- UTILITY ---------- Large Storage Unit Improved Terrain Scanner > --- WEAPON ----------- EM Pulse Gun Medium Laser > --- INVENTORY -------- Light Ion Engine Light Treads Aluminum Leg Wheel Compact Wheel Compact Wheel Compact Wheel Medium Matter Pod EM Pulse Gun Mining Laser [Rating: 10] Favorites ----------- Power Light Ion Engine Engine Light Ion Engine Propulsion Light Treads Treads Light Treads Leg Aluminum Leg Wheel Wheel Utility Improved Terrain Scanner Device Improved Terrain Scanner Storage Large Storage Unit Weapon EM Pulse Gun Energy Gun EM Pulse Gun Build | -11 -10 ------- Run | Yrd Mat Slots Evolved . | . . Power . | . . Propulsion . | . . Utility . | . . Weapon . | . . Parts Attached 18 | 7 11 Power 2 | 1 1 Engine 2 | 1 1 Core . | . . Reactor . | . . Propulsion 5 | 2 3 Treads 3 | 2 1 Leg 1 | . 1 Wheel 1 | . 1 Hover . | . . Flight . | . . Utility 6 | 2 4 Device 4 | 1 3 Storage 2 | 1 1 Processor . | . . Hackware . | . . Protection . | . . Artifact . | . . Weapon 5 | 2 3 Energy Gun 5 | 2 3 Energy Cannon . | . . Ballistic Gun . | . . Ballistic Cannon . | . . Launcher . | . . Special Weapon . | . . Impact Weapon . | . . Slashing Weapon . | . . Piercing Weapon . | . . Special Melee Weapon . | . . Unidentified Prototypes . | . . Parts Lost 11 | . 11 Power 2 | . 2 Propulsion 3 | . 3 Utility 2 | . 2 Weapon 4 | . 4 Highest Loss Streak 6 | . 6 To Critical Strikes . | . . Average Slot Usage (%) 97 | . 97 Engine 12 | . 12 Treads 26 | . 26 Leg 1 | . 1 Device 13 | . 13 Storage 14 | . 14 Energy Gun 27 | . 27 Peak Build Rating 10 | 9 10 Average Rating 8 | 6 8 On Entrance 4 | . 9 Naked Turns . | . . Heaviest Build 28 | 13 28 Greatest Support 40 | 40 40 Greatest Overweight (x) 2 | . 2 Average Overweight (x) . | . . Largest Inventory Capacity 15 | 8 15 Average Capacity 11 | 7 12 Most Carried 11 | 8 11 Average Carried 7 | 4 8 Final Capacity 15 | 8 15 Final Carried 8 | 8 7 Class Distribution -------------------- 100% | Mutant Dominant Class ---------------- Mutant | -10/Materials Resources | -11 -10 ----------- Run | Yrd Mat Matter Collected 330 | 270 60 Remotely . | . . Salvage Created 571 | 98 473 Parts 26 | 5 21 Haulers Intercepted . | . . Recyclers Shooed . | . . Parts Field Recycled . | . . Retrieved Matter . | . . Parts Self-Destructed . | . . Prevented . | . . Kills | -11 -10 ------- Run | Yrd Mat Combat Hostiles Destroyed 11 | . 11 Guns 9 | . 9 AOE 2 | . 2 Classes Destroyed 6 | 2 4 Worker 3 | . 3 Builder 1 | . 1 Tunneler 1 | 1 . Recycler 1 | 1 . Swarmer 3 | . 3 Grunt 8 | . 8 Best Kill Streak 5 | 2 5 Combat Bots Only 3 | . 3 Max Kills in Single Turn 2 | 1 2 Gunslinging . | . . Exploded 1 | . 1 Melee . | . . Uniques/NPCs Destroyed . | . . Combat | -11 -10 -------- Run | Yrd Mat Hostile Shots Fired 108 | . 108 Missed 32 | . 32 Damage Taken 1248 | . 1248 Core 261 | . 261 Absorbed by Shields . | . . Core Remaining (%) 100 | 100 . Volleys Fired 46 | 2 44 Largest 2 | 2 2 Hottest 90 | 90 90 Shots Fired 83 | 4 79 Gun 83 | 4 79 Cannon . | . . Launcher . | . . Special . | . . Kinetic . | . . Thermal 46 | 2 44 Explosive . | . . Electromagnetic 37 | 2 35 Robot Hit Streak 12 | 2 12 Robot Miss Streak 3 | . 3 Penetration Max . | . . Secondary Targets 1 | . 1 Max Gunslinging Chain 1 | . 1 Shots Hit Robots 56 | 2 54 Core Hits 25 | 2 23 Critical Kills . | . . Critical Parts Destroyed . | . . Critical Strikes 2 | . 2 Burn 1 | . 1 Corrupt 1 | . 1 Melee Attacks . | . . Impact . | . . Slashing . | . . Piercing . | . . Sneak Attacks . | . . Combat Hostiles . | . . Follow-up Attacks . | . . Damage Inflicted 1054 | 28 1026 Guns 698 | 28 670 Cannons . | . . Explosions 356 | . 356 Melee . | . . Ramming . | . . Kinetic . | . . Thermal 718 | . 718 Explosive . | . . Electromagnetic 336 | 28 308 Impact . | . . Slashing . | . . Piercing . | . . Highest Corruption . | . . Average Corruption . | . . Corruption Purged . | . . Corruption Blocked . | . . Overload Shots . | . . Overflow Damage 10 | . 10 Projectiles . | . . Explosions 10 | . 10 Melee . | . . Knockbacks . | . . Impact . | . . Kinetic . | . . Secondary . | . . Self-Inflicted Damage 177 | . 177 Shots 4 | . 4 Rammed . | . . Targets Rammed . | . . Kicked . | . . Crushed . | . . Highest Temperature 231 | 60 231 Average Temperature 74 | 31 77 Received Heat Transfer 510 | . 510 Siege Activations . | . . Robots Corrupted . | . . Combat Hostiles . | . . Parts Fried . | . . Impact Corruptions . | . . Robots Melted . | . . Combat Hostiles . | . . Parts Melted 2 | . 2 Heat Transferred 1530 | . 1530 Parts Sabotaged . | . . Parts Stolen . | . . Parts Stripped . | . . Power Chain Reactions 4 | . 4 Alert | -11 -10 ------- Run | Yrd Mat Peak Influence 191 | 10 191 Initial 6 | . 6 Average 70 | 3 82 Maximum Alert Level . | . . Low Security (%) 100 | 100 100 Level 1 . | . . Level 2 . | . . Level 3 . | . . Level 4 . | . . Level 5 . | . . High Security . | . . Max Security . | . . Squads Dispatched 3 | . 3 Investigation 2 | . 2 Extermination . | . . Reinforcement 1 | . 1 Assault . | . . Garrison . | . . Intercept . | . . Searches Triggered . | . . Construction Impeded . | . . Haulers Reinforced . | . . Active Scanning Responses . | . . Cargo Convoy Interrupts . | . . Stealth | -11 -10 --------- Run | Yrd Mat Distress Signals 2 | . 2 Communications Jammed . | . . Distress Signals . | . . Times Spotted 23 | . 23 Peak Tracking Total 7 | . 7 Tactical Retreats . | . . Traps | -11 -10 ------- Run | Yrd Mat Traps Triggered 1 | . 1 Indirectly . | . . Trap Hack Attempts . | . . Triggered . | . . Disarmed . | . . Reprogrammed . | . . Reused . | . . Traps Extracted . | . . Installed . | . . Triggered . | . . Machines | -11 -10 ---------- Run | Yrd Mat Machines Disabled 3 | . 3 Max in Single Turn 3 | . 3 Machines Repaired . | . . Machines Dismantled . | . . Machines Sabotaged . | . . Overloaded Fab Kills . | . . Hacking | -11 -10 --------- Run | Yrd Mat Machines Accessed 3 | . 3 Terminals 2 | . 2 Fabricators . | . . Repair Stations . | . . Recycling Units 1 | . 1 Scanalyzers . | . . Garrison Access . | . . Total Hacks 10 | . 10 Successful 2 | . 2 Failed 8 | . 8 Catastrophic 1 | . 1 Database Lockouts . | . . Manual 7 | . 7 Terminals 7 | . 7 Fabricators . | . . Repair Stations . | . . Recycling Units 3 | . 3 Scanalyzers . | . . Garrison Access . | . . Terminal Hacks 1 | . 1 Part Schematic 1 | . 1 Fabricator Hacks . | . . Repair Station Hacks . | . . Recycling Unit Hacks . | . . Scanalyzer . | . . Garrison Access Hacks . | . . Unauthorized Hacks 1 | . 1 Terminals 1 | . 1 Botnet 1 | . 1 Fabricators . | . . Repair Stations . | . . Recycling Units . | . . Scanalyzers . | . . Garrison Access . | . . Data Cores Recovered . | . . Used . | . . Hacking Detections 3 | . 3 Full Trace Events 3 | . 3 Feedback Events . | . . Feedback Blocked . | . . Robot Schematics Acquired . | . . Robots Built . | . . Authchips . | . . Time . | . . Total Robot Build Rating . | . . Part Schematics Acquired 1 | . 1 Parts Built . | . . Authchips . | . . Time . | . . Total Part Build Rating . | . . Parts Repaired . | . . Time . | . . Parts Recycled . | . . Recycled Matter . | . . Retrieved Matter . | . . Retrieved Components . | . . Parts Scanalyzed . | . . Part Schematics Acquired . | . . Parts Damaged . | . . Bothacking | -11 -10 ------------ Run | Yrd Mat Used RIF Installer . | . . Robots Hacked . | . . Non-combat . | . . Combat . | . . Robot Hacks Applied . | . . Relay Couplers Released . | . . Fabnet Peak Effective % . | . . Robots Rewired . | . . Allies Hacked . | . . Hacks Repelled . | . . Allies | -11 -10 -------- Run | Yrd Mat Total Allies . | . . Largest Group . | . . Highest-Rated Group . | . . Highest-Rated Ally . | . . Total Orders . | . . Ally Attacks . | . . Total Damage . | . . Kills . | . . Allies Corrupted . | . . Allies Melted . | . . Intel | -11 -10 ------- Run | Yrd Mat Robot Analysis Total . | . . Derelict Logs Recovered . | . . Drone Launches . | . . Drone Recoveries . | . . Exploration | -11 -10 ------------- Run | Yrd Mat Turns Passed 759 | 116 643 Spaces Moved 309 | 55 254 Core 3 | 3 . Treads 297 | 52 245 Legs 7 | . 7 Wheels 2 | . 2 Hover . | . . Flight . | . . Fastest Speed 50 | 50 110 Average Speed 160 | 154 162 Slowest Speed 260 | 160 260 Overloaded Moves . | . . Propulsion Burnouts . | . . Robots Hopped . | . . Cave-ins Triggered . | . . Exploration Rate (%) 19 | 4 34 Regions Visited 1 Branch Regions . Pre-discovered Areas . | . . Known Exits Taken . | . . Unknown Exits Taken 1 | 1 . Scrap Searched . | . . Spaces Dug . | . . Terrain Destroyed 56 | . 56 Melee . | . . Projectile . | . . AOE 56 | . 56 Terrain Rammed . | . . Walls Destroyed . | . . Machines Disabled . | . . Actions | -11 -10 --------- Run | Yrd Mat Total 485 | 79 406 Wait 94 | 8 86 Move 308 | 54 254 Hop . | . . Pick Up 16 | 8 8 Fast Attach 9 | 7 2 Attach 7 | . 7 Detach . | . . Swap 2 | . 2 Drop 3 | . 3 Fire 46 | 2 44 Melee . | . . Ram . | . . Kick . | . . Crush . | . . Escape Stasis . | . . Rewire . | . . Trap . | . . Miscellaneous . | . . Route ------- -11/Scrapyard -10/Materials (discovered 1 exit: [*Min]) History --------- Turn | Location | Event 2 | -11/Scrapyard | Discovered new exit (range 16) 117 | -11/Scrapyard | Entered Materials 300 | -10/Materials | Build established: Mutant 445 | -10/Materials | Discovered new exit (range 11) 617 | -10/Materials | Derelicts attacked the area 695 | -10/Materials | Lost 5 parts (1p1n1u2w) 714 | -10/Materials | Core integrity fell below 50% 753 | -10/Materials | Core integrity fell below 20% 760 | -10/Materials | Destroyed by G-47 Trooper with Particle Gun Last Messages --------------- 00735_ U-05 Engineer lays Concrete. 00737_ K-01 Serf collects debris. 00738_ U-05 Engineer lays Concrete. 00740_ K-01 Serf collects debris. 00741_ Ion Engine melted. 00741_ Heat Sink melted. 00741_ G-34 Mercenary destroyed. 00741_ U-05 Engineer lays Concrete. 00743_ K-01 Serf collects debris. 00745_ U-05 Engineer builds a Wall. 00746_ Sml. Laser destroyed. 00746_ K-01 Serf collects debris. 00749_ U-05 Engineer lays Concrete. 00751_ U-05 Engineer builds a Wall. 00755_ K-01 Serf collects debris. 00755_ U-05 Engineer builds a Wall. 00756_ K-01 Serf collects debris. 00756_ U-05 Engineer lays Concrete. 00757_ K-01 Serf collects debris. 00757_ Acquired Disposable Heat Sink. Map ----- +----------------------------------------------------+ | | | ?????????????????????????????????????????????????? | | ?????????????????????????????????????????????????? | | ?????????????????????????????????????????????????? | | ?????????????????????????????????????????????????? | | ?????????????????????????????????????????????????? | | ?????????????????????????????????????????????????? | | ?????????????????????????????????????????????????? | | ?????????????????????????????????????????????????? | | ?????????????????????????????????????????????????? | | ?????????????????????????????????????????????????? | | ?????????????????????????????????????????????????? | | ?????????????????????????????????????????????????? | | ?????????????????????????????????????????????????? | | ??????????????????????????###+### ??????????????? | | ??????????????????? ?? ??? #????????????? | | ??????????????????? ?????? #????????????? | | ??????????????? ?????????? #????????????? | | ?????????????????#????#???# #????????????? | | ????????????????????#####?# #?# ?????????? | | ???????????# ???##### #### ??????????? | | ???????????# ??# # ??????????? | | ???????????# ## # ??????????? | | ???????????# #;;; ### #% [ ??? ?????? ? | | ???????????# #; uu # !%""" """???"???????? | | ???????????# #; @#!!="""= """ ""?? ??"?? | | ???????????# #; !=#% |"""%=""" """ ???? ? | | ???????????# #; !gk!%&& %*= ????? | | ???????????????#; &%#%!%= * ?? ?? | | ???????????????#; %==|&*% ? ? ? | | ??????????#????## ;" %#############?????? | | ????????????????# ## ##?# ####### | | ??????????#?????#####;;##### #??#""" #= | | ???????????? ??#?#?####???# ##?#""" +%% | | ????????? ? ???????????#??## ####""" #= | | ??????????? ?????????#?#?## """# # ##### | | ?????????????????????#????# "#""" # ???? | | ??????????????????????? ?## "#""" # ??# | | ???????????? ?????????????# < ""#""" ## ?# | | ??????????????? ???"??"???# "# #?###?# | | ??????????????????????"? ?# "####+########### | | ??????????????????"??????## """##?# ### | | ??????????????? ??????? ?## ####### ### """ | | ??????????????????????? ?### ##### # """"" | | ???????????????????"???????# # """"" | | ??????????????????? ?????#?# + """"" | | ?????????????????????????#?# % # """ | | ???????????????????#????##?######+## # | | ???????????????????#???????# ## ##### | | ?????????????????? ?? ?????# = ## #???######### | +----------------------------------------------------+ Best States ------------- Heat Dissipation 35 Coolant Potential 50 Energy Generation 10 Energy Capacity 125 Matter Stores 300 Matter Capacity 300 Sight Range 16 Terrain Scan Range 16 Terrain Scan Density 10 Evasion (%) 40 Recoil Reduction 2 Item Schematics ----------------- Huge Storage Unit | -10/Materials | Hacked Robot Schematics ------------------ None Fabricated ------------ Nothing Alien Tech Used ----------------- None Achievements -------------- None Challenges ------------ None Game ------ Seed MiningArmageddonRail Manual? 0 Play Time 00:05:37 Cumulative 181.1 hours Start 2024.11.09 @ 22:45:04 End 2024.11.09 @ 22:50:38 Sessions 1 Manual Loads 0 Difficulty Rogue Special Mode None Game No. 45 Rogue 44 Adventurer 1 Explorer 0 Win Type - Total 14 Types 4/3/4/0/0/0/3/0/0 Lore% 49 Gallery% 72 Achievement% 66 Wizard Run 0 Options --------- Layout 0 ASCII 0 Keyboard 0 Movement Mouse Keybinds 0 Fullscreen 1 Font 18/Terminus Map View 76x50 Zoom Use 0% Tactical HUD 1 Map Filters NONE Filters NONE Steam 0 RUN: 9a249213-c4e7-42e2-80f4-7b63ca2a26b4